bitfinex/quotes_SOLUSD_20240613
["timestamp","ask_amount","ask_price","bid_price","bid_amount"]
[1718265706168,8.31,151.93,151.89,15.1116]
[1718265706363,8.31,151.94,151.89,15.1116]
[1718265706557,8.31,151.93,151.89,15.1116]
[1718265707274,8.31,151.92,151.89,15.1116]
[1718265708476,8.31,151.93,151.89,15.1116]
[1718265712485,6.84659684,151.96,151.89,15.1116]
[1718265712686,8.31,151.94,151.89,23.4216]
[1718265712892,8.31,151.94,151.89,15.1116]
[1718265713192,8.31,151.93,151.89,15.1116]
[1718265713490,8.31,151.94,151.89,15.1116]
[1718265713689,8.31,151.93,151.89,15.1116]
[1718265715674,6.84659684,151.96,151.89,15.1116]
[1718265716177,8.31,151.93,151.89,15.1116]
[1718265717090,6.84659684,151.96,151.89,15.1116]
[1718265717292,6.84659684,151.96,151.89,23.4216]
[1718265717293,8.31,151.94,151.89,23.4216]
[1718265717499,8.31,151.95,151.9,53.65]
[1718265717675,15.15659684,151.96,151.9,53.65]
[1718265718098,6.84659684,151.96,151.91,0.17]
[1718265718272,6.1692,152.02,151.91,0.17]
[1718265718273,8.31,151.98,151.92,8.31]
[1718265718599,6.84466917,152.01,151.92,8.31]
[1718265718890,8.31,151.98,151.92,8.31]
[1718265719065,8.31,151.97,151.91,8.65]
[1718265719269,8.31,151.97,151.91,0.34]
[1718265719576,8.31,151.97,151.91,8.65]
[1718265720901,6.84466917,152.01,151.92,45.34]
[1718265721199,8.31,151.97,151.92,45.34]
[1718265721613,6.84466917,152.01,151.92,45.34]
[1718265721778,8.31,152.0,151.95,8.48]
[1718265723210,6.84466917,152.01,151.95,8.48]
[1718265723501,8.31,152.0,151.94,15.978]
[1718265723807,8.31,151.99,151.94,15.978]
[1718265724373,8.31,151.97,151.91,53.31]
[1718265724700,8.31,151.97,151.91,69.5786]
[1718265725583,46.32320167,152.02,151.91,69.5786]
[1718265725782,8.31,151.97,151.91,69.5786]
[1718265727197,8.31,151.97,151.92,0.17]
[1718265727383,8.31,151.98,151.92,8.99]
[1718265729007,8.31,151.98,151.92,0.68]
[1718265729206,8.31,151.98,151.92,8.99]
[1718265730486,46.32320167,152.02,151.92,0.68]
[1718265730692,8.31,151.98,151.92,8.99]
[1718265733212,8.31,151.97,151.91,69.5786]
[1718265733383,8.31,151.96,151.91,69.5786]
[1718265735605,40.09045454,152.0,151.91,69.5786]
[1718265735807,8.31,151.97,151.91,69.5786]
[1718265736709,8.31,151.95,151.91,16.2686]
[1718265737614,6.85045454,152.0,151.92,0.34]
[1718265737907,8.31,151.99,151.94,0.17]
[1718265738208,15.16045454,152.0,151.94,53.48]
[1718265738404,15.16045454,152.0,151.94,8.48]
[1718265738994,8.31,152.0,151.94,8.48]
[1718265739698,6.84649399,152.03,151.95,8.31]
[1718265739909,8.31,152.01,151.95,8.31]
[1718265740097,8.31,152.02,151.96,8.31]
[1718265741598,6.84649399,152.03,151.96,8.31]
[1718265741802,8.31,152.01,151.96,8.31]
[1718265743297,8.31,152.01,151.95,8.31]
[1718265743517,8.31,152.01,151.94,0.34]
[1718265743518,8.31,151.99,151.94,0.17]
[1718265743724,8.31,151.98,151.93,0.17]
[1718265743897,8.31,151.98,151.93,0.34]
[1718265744517,8.31,151.98,151.93,8.65]
[1718265745224,8.31,151.99,151.93,8.65]
[1718265745421,8.31,151.99,151.93,0.34]
[1718265745711,46.32649399,152.03,151.93,8.31]
[1718265746015,8.31,151.99,151.93,8.31]
[1718265746216,8.31,151.98,151.93,8.31]
[1718265747412,8.31,151.98,151.92,45.17]
[1718265747720,8.31,151.98,151.93,8.31]
[1718265748912,8.31,151.98,151.92,45.17]
[1718265749224,8.31,151.98,151.93,8.31]
[1718265749815,6.84798655,152.01,151.93,8.31]
[1718265749998,8.31,151.98,151.93,8.31]
[1718265750206,8.31,151.99,151.93,8.31]
[1718265752511,6.84798655,152.01,151.93,8.31]
[1718265752810,8.31,151.99,151.93,8.31]
[1718265754513,6.84798655,152.01,151.93,8.31]
[1718265754816,6.84798655,152.01,151.94,0.17]
[1718265754995,8.31,151.99,151.94,53.99]
[1718265755613,6.84798655,152.01,151.94,53.99]
[1718265755798,8.31,151.99,151.94,53.99]
[1718265755990,8.31,151.99,151.94,45.68]
[1718265756193,8.31,151.99,151.94,53.99]
[1718265757199,46.32798655,152.01,151.91,16.2686]
[1718265757522,8.31,151.93,151.91,16.2686]
[1718265759534,8.31,151.92,151.87,16.0956]
[1718265759725,8.31,151.89,151.87,16.0956]
[1718265760233,8.31,151.88,151.83,16.1212]
[1718265762120,8.31,151.87,151.83,16.1212]
[1718265764145,8.31,151.86,151.83,16.1212]
[1718265764310,45.8864,151.9,151.78,21.8292]
[1718265764510,8.31,151.84,151.78,30.1392]
[1718265764729,8.31,151.84,151.79,8.31]
[1718265765310,20.0,151.89,151.8,8.31]
[1718265765516,20.0,151.89,151.83,8.31]
[1718265765517,8.31,151.88,151.83,8.31]
[1718265766119,8.31,151.88,151.82,0.17]
[1718265766451,8.31,151.88,151.83,8.31]
[1718265767417,20.0,151.89,151.83,8.31]
[1718265767613,28.31,151.89,151.83,8.31]
[1718265768347,28.31,151.89,151.84,8.31]
[1718265768917,8.31,151.88,151.78,121.8292]
[1718265769138,8.31,151.87,151.82,8.31]
[1718265769353,8.31,151.88,151.82,8.31]
[1718265769719,8.31,151.88,151.83,8.31]
[1718265769920,8.31,151.88,151.82,8.31]
[1718265772423,8.31,151.88,151.78,121.8292]
[1718265772641,8.31,151.88,151.82,8.31]
[1718265774947,20.0,151.89,151.82,8.31]
[1718265775250,8.31,151.88,151.82,8.31]
[1718265776249,20.0,151.89,151.82,8.31]
[1718265776448,8.31,151.88,151.82,8.31]
[1718265780249,8.31,151.87,151.81,8.31]
[1718265780623,20.0,151.89,151.81,8.31]
[1718265780624,8.31,151.86,151.81,8.31]
[1718265782261,8.31,151.87,151.81,8.31]
[1718265782556,8.31,151.88,151.82,8.31]
[1718265783052,20.0,151.89,151.82,8.31]
[1718265783259,8.31,151.88,151.82,8.31]
[1718265785149,20.0,151.89,151.81,0.17]
[1718265785360,39.48,151.95,151.81,0.17]
[1718265785361,268.04688843,151.98,151.84,31.4264]
[1718265785569,274.54308843,151.98,151.89,8.31]
[1718265785863,6.83159039,151.96,151.89,8.31]
[1718265786032,8.31,151.94,151.86,100.17]
[1718265786236,8.31,151.94,151.89,8.31]
[1718265786437,8.31,151.94,151.88,8.31]
[1718265787238,8.31,151.93,151.87,8.82]
[1718265790258,8.31,151.93,151.87,0.51]
[1718265790561,8.31,151.93,151.87,8.65]
[1718265790741,8.31,151.94,151.89,8.31]
[1718265791137,8.31,151.95,151.89,8.31]
[1718265791756,6.83159039,151.96,151.9,8.31]
[1718265791964,6.83159039,151.96,151.91,8.31]
[1718265792134,251.41098843,151.98,151.92,8.31]
[1718265792339,259.72098843,151.98,151.92,8.31]
[1718265792563,259.72098843,151.98,151.9,15.6886]
[1718265792564,251.41098843,151.98,151.93,8.31]
[1718265793059,259.72098843,151.98,151.93,8.31]
[1718265793642,251.41098843,151.98,151.93,8.31]
[1718265794138,259.72098843,151.98,151.93,8.31]
[1718265795041,259.72098843,151.98,151.92,8.31]
[1718265795237,8.31,151.97,151.92,8.31]
[1718265795549,8.31,151.97,151.9,15.6886]
[1718265795750,8.31,151.97,151.91,8.31]
[1718265796057,8.31,151.97,151.9,15.5186]
[1718265796259,8.31,151.96,151.9,15.5186]
[1718265796440,8.31,151.95,151.89,8.31]
[1718265796832,8.31,151.94,151.88,8.31]
[1718265797059,8.31,151.93,151.88,8.31]
[1718265798261,8.31,151.94,151.88,8.31]
[1718265799158,8.31,151.95,151.89,8.31]
[1718265801766,258.25135346,151.98,151.89,8.31]
[1718265801950,8.31,151.95,151.89,8.31]
[1718265802646,20.0,151.97,151.89,8.31]
[1718265802854,8.31,151.95,151.89,8.31]
[1718265804770,8.31,151.95,151.88,0.17]
[1718265805057,258.25135346,151.98,151.93,8.31]
[1718265805251,251.41098843,151.98,151.95,8.31]
[1718265806852,251.41098843,151.98,151.93,0.17]
[1718265807055,251.41098843,151.98,151.96,8.31]
[1718265807249,8.31,152.02,151.96,8.31]
[1718265808059,8.31,152.01,151.96,8.31]
[1718265809281,258.25258938,152.03,151.96,8.31]
[1718265809581,28.31,152.02,151.96,8.31]
[1718265810367,8.31,152.01,151.96,8.31]
[1718265811171,20.0,152.02,151.93,45.51]
[1718265811353,20.0,152.02,151.97,8.31]
[1718265811674,28.31,152.02,151.97,8.31]
[1718265812348,28.31,152.02,151.96,8.31]
[1718265814401,20.0,152.02,151.96,8.31]
[1718265814580,259.72098843,152.03,151.97,8.31]
[1718265816565,251.41098843,152.03,151.97,8.31]
[1718265816851,251.41098843,152.03,151.98,8.31]
[1718265818857,8.31,152.02,151.97,8.31]
[1718265820270,8.31,152.02,151.95,0.34]
[1718265820581,8.31,152.01,151.95,8.65]
[1718265821573,8.31,152.01,151.94,15.472]
[1718265821574,8.31,152.0,151.94,15.302]
[1718265821778,8.31,151.99,151.94,15.302]
[1718265822150,258.25001857,152.03,151.94,23.612]
[1718265822354,20.0,152.02,151.94,23.612]
[1718265822561,8.31,152.0,151.94,23.612]
[1718265824979,8.31,152.0,151.94,15.302]
[1718265825380,8.31,152.0,151.94,23.612]
[1718265825879,8.31,152.01,151.95,8.48]
[1718265827994,8.31,152.0,151.95,8.31]
[1718265828177,8.31,151.99,151.94,23.612]
[1718265828372,20.0,152.02,151.94,23.612]
[1718265828679,8.31,151.99,151.94,15.302]
[1718265829576,8.31,151.99,151.91,0.17]
[1718265829886,8.31,151.99,151.93,8.31]
[1718265830594,8.31,151.98,151.93,8.31]
[1718265830771,8.31,151.98,151.92,8.31]
[1718265830972,8.31,151.98,151.93,45.0]
[1718265831782,6.83702101,152.0,151.93,45.0]
[1718265832085,20.0,152.02,151.95,8.31]
[1718265832386,8.31,152.01,151.96,45.0]
[1718265832590,28.31,152.01,151.96,45.0]
[1718265833199,8.31,152.02,151.96,53.31]
[1718265833499,8.31,152.02,151.97,8.31]
[1718265833798,8.31,152.02,151.97,8.48]
[1718265835877,8.31,152.02,151.97,8.31]
[1718265836093,8.31,152.01,151.96,16.2421]
[1718265836395,8.31,151.98,151.92,16.094]
[1718265836603,8.31,151.97,151.92,16.094]
[1718265837689,8.31,151.97,151.93,45.0]
[1718265838983,8.31,151.97,151.92,16.094]
[1718265839580,8.31,151.98,151.93,45.0]
[1718265839782,46.31383927,152.03,151.93,45.0]
[1718265839998,8.31,151.98,151.93,45.0]
[1718265840201,8.31,151.99,151.93,53.31]
[1718265840404,20.0,152.02,151.94,8.31]
[1718265840610,8.31,152.0,151.94,8.31]
[1718265840898,20.0,152.02,151.94,8.31]
[1718265841098,8.31,152.0,151.94,8.31]
[1718265841306,8.31,151.99,151.94,8.31]
[1718265842481,20.0,152.02,151.95,45.17]
[1718265842693,20.0,152.02,151.95,53.65]
[1718265843114,8.31,152.01,151.95,53.65]
[1718265843600,20.0,152.02,151.96,8.48]
[1718265843798,6.83383927,152.03,151.96,8.48]
[1718265844001,8.31,152.02,151.96,8.48]
[1718265844883,20.0,152.01,151.96,8.31]
[1718265845204,8.31,152.0,151.94,0.17]
[1718265845407,46.31515601,152.05,151.96,8.31]
[1718265845596,8.31,152.02,151.97,45.0]
[1718265847210,20.0,152.04,151.97,45.0]
[1718265847514,8.31,152.02,151.97,45.0]
[1718265848310,8.31,152.01,151.97,45.0]
[1718265848893,8.31,152.01,151.96,45.17]
[1718265851097,8.31,152.0,151.96,45.0]
[1718265851410,8.31,152.0,151.94,8.82]
[1718265851614,8.31,152.0,151.95,45.0]
[1718265852815,8.31,152.01,151.96,0.34]
[1718265852999,8.31,152.01,151.96,8.65]
[1718265853198,8.31,152.01,151.97,45.0]
[1718265853706,8.31,152.01,151.96,0.17]
[1718265853892,8.31,152.0,151.94,0.34]
[1718265854093,8.31,152.0,151.94,8.65]
[1718265854293,8.31,152.0,151.95,45.0]
[1718265855897,8.31,151.99,151.95,45.0]
[1718265856099,8.31,151.98,151.94,45.0]
[1718265856417,8.31,151.98,151.93,45.34]
[1718265857210,8.31,151.99,151.93,53.65]
[1718265857808,6.83916416,152.03,151.93,53.65]
[1718265857999,10.0,151.98,151.97,0.17]
[1718265858394,10.0,151.98,151.97,8.48]
[1718265858589,10.0,151.98,151.97,53.82]
[1718265858924,10.0,151.98,151.97,53.99]
[1718265860300,10.0,151.98,151.97,53.82]
[1718265860528,10.0,151.98,151.97,45.0]
[1718265860820,10.0,151.98,151.92,122.54493268]
[1718265860996,10.0,151.98,151.92,16.094]
[1718265861326,8.31,151.97,151.92,16.094]
[1718265861612,8.31,151.93,151.88,15.1558]
[1718265861813,8.31,151.91,151.88,15.1558]
[1718265862006,8.31,151.91,151.85,8.31]
[1718265862202,8.31,151.91,151.84,15.1558]
[1718265862407,8.31,151.87,151.84,15.1558]
[1718265862902,15.4112,151.93,151.84,15.1558]
[1718265863417,15.4112,151.93,151.84,115.1558]
[1718265863626,15.4112,151.93,151.85,45.68]
[1718265863790,39.48,151.96,151.85,45.34]
[1718265864138,0.17,151.94,151.84,15.1558]
[1718265864292,20.51,151.95,151.84,15.1558]
[1718265864494,0.34,151.95,151.84,15.1558]
[1718265864717,39.82,151.95,151.84,15.1558]
[1718265864921,59.65,151.94,151.84,15.1558]
[1718265865412,59.48,151.94,151.84,15.1558]
[1718265865619,20.0,151.94,151.84,15.1558]
[1718265866005,20.0,151.94,151.85,45.0]
[1718265866323,59.48,151.94,151.84,15.1558]
[1718265866523,0.17,151.93,151.84,15.1558]
[1718265867619,20.0,151.94,151.85,0.17]
[1718265867927,59.48,151.96,151.85,45.51]
[1718265868134,59.48,151.96,151.85,45.0]
[1718265868296,39.48,151.93,151.81,0.17]
[1718265868497,20.0,151.92,151.81,45.68]
[1718265868916,26.83052854,151.92,151.81,45.68]
[1718265872408,42.01762612,151.96,151.84,0.17]
[1718265872716,46.4502,151.97,151.84,45.68]
[1718265872917,6.82402677,151.95,151.84,45.68]
[1718265873630,6.82402677,151.95,151.86,100.0]
[1718265873808,21.4702,151.97,151.87,45.68]
[1718265875137,20.0,151.96,151.87,45.68]
[1718265876215,20.0,151.96,151.88,0.17]
[1718265882935,8.32,151.94,151.88,8.49]
[1718265883140,8.32,151.94,151.89,45.0]
[1718265884447,8.32,151.94,151.87,0.34]
[1718265884742,8.32,151.9,151.86,15.3496]
[1718265885548,8.32,151.91,151.86,15.3496]
[1718265887229,8.32,151.91,151.86,23.6696]
[1718265887532,26.82453006,151.96,151.87,54.0]
[1718265887734,8.32,151.92,151.87,54.0]
[1718265889042,8.32,151.92,151.87,45.0]
[1718265889358,8.32,151.91,151.87,45.0]
[1718265890843,26.82453006,151.96,151.87,45.0]
[1718265891161,8.32,151.92,151.87,45.0]
[1718265891952,8.32,151.91,151.87,45.0]
[1718265892140,8.32,151.91,151.86,15.5196]
[1718265892649,8.32,151.91,151.86,15.3496]
[1718265893661,26.82453006,151.96,151.87,45.51]
[1718265893841,8.32,151.92,151.87,45.0]
[1718265894431,8.32,151.91,151.87,45.0]
[1718265894651,8.32,151.91,151.86,23.6696]
[1718265895155,8.32,151.91,151.86,15.3496]
[1718265895365,8.32,151.91,151.86,23.6696]
[1718265896657,6.82358484,151.94,151.87,45.0]
[1718265896845,8.32,151.91,151.87,45.0]
[1718265897351,8.32,151.92,151.87,45.0]
[1718265898562,8.32,151.91,151.87,45.0]
[1718265900658,20.0,151.96,151.87,45.0]
[1718265900860,8.32,151.92,151.87,45.0]
[1718265901562,8.32,151.93,151.87,53.32]
[1718265901979,26.82471391,151.96,151.88,8.49]
[1718265902176,8.32,151.94,151.89,45.0]
[1718265902473,8.32,151.95,151.9,8.49]
[1718265902653,8.32,151.95,151.91,45.0]
[1718265902969,8.32,151.95,151.9,0.17]
[1718265903155,8.32,151.95,151.9,0.51]
[1718265903769,16.82427412,151.98,151.9,8.83]
[1718265903969,8.32,151.96,151.91,45.0]
[1718265905874,16.82427412,151.98,151.92,15.7598]
[1718265906164,10.0,151.98,151.94,8.32]
[1718265912277,10.0,151.98,151.95,45.51]
[1718265912458,10.0,151.98,151.97,8.49]
[1718265912658,10.0,151.98,151.97,45.51]
[1718265913085,10.0,151.98,151.97,45.0]
[1718265913549,10.0,151.98,151.95,8.32]
[1718265913550,10.0,151.98,151.96,45.0]
[1718265914566,10.0,151.98,151.96,53.32]
[1718265916080,10.0,151.98,151.96,45.0]
[1718265916375,10.0,151.98,151.96,8.49]
[1718265916678,10.0,151.98,151.97,45.0]
[1718265917963,10.0,151.98,151.97,45.51]
[1718265918276,10.0,151.98,151.97,70.065]
[1718265918460,10.0,151.98,151.97,70.235]
[1718265921375,10.0,151.98,151.97,61.915]
[1718265921674,10.0,151.98,151.97,61.745]
[1718265921983,10.0,151.98,151.97,61.915]
[1718265922175,10.0,151.98,151.97,70.235]
[1718265929492,6.82613166,152.07,151.99,100.0]
[1718265929689,24.0689,152.09,152.0,45.68]
[1718265929882,24.0689,152.09,152.03,8.32]
[1718265930180,15.7489,152.09,152.04,45.0]
[1718265930384,24.0689,152.09,152.04,45.0]
[1718265930691,8.32,152.07,152.02,0.34]
[1718265930870,8.32,152.07,152.02,0.17]
[1718265931070,8.32,152.07,152.01,8.32]
[1718265931269,8.32,152.07,152.02,45.0]
[1718265931877,8.32,152.06,152.02,45.0]
[1718265932377,15.7489,152.09,152.02,45.0]
[1718265932579,8.32,152.06,152.02,45.0]
[1718265933077,8.32,152.07,152.02,53.32]
[1718265933397,15.7489,152.09,152.03,0.17]
[1718265933581,15.7489,152.09,152.03,8.83]
[1718265933582,24.0689,152.09,152.03,8.83]
[1718265933766,24.0689,152.09,152.04,45.0]
[1718265934185,8.32,152.09,152.04,45.0]
[1718265934511,8.32,152.09,152.05,0.51]
[1718265934697,8.32,152.09,152.05,0.17]
[1718265934890,8.32,152.09,152.04,53.32]
[1718265935294,8.32,152.09,152.0,100.0]
[1718265935477,8.32,152.08,152.02,8.32]
[1718265935685,8.32,152.08,152.03,45.68]
[1718265935992,8.32,152.09,152.03,54.0]
[1718265936175,6.2253,152.1,152.03,54.0]
[1718265936373,28.32,152.09,152.03,54.0]
[1718265937972,6.83174396,152.12,152.04,8.32]
[1718265938173,8.32,152.11,152.05,54.0]
[1718265938387,8.32,152.11,152.05,0.34]
[1718265938704,8.32,152.1,152.05,0.17]
[1718265938921,8.32,152.1,152.05,45.51]
[1718265939573,8.32,152.1,152.06,45.0]
[1718265939789,8.32,152.1,152.05,0.51]
[1718265940380,8.32,152.1,152.05,0.17]
[1718265940602,8.32,152.1,152.04,53.49]
[1718265941100,8.32,152.1,152.05,0.34]
[1718265941307,6.83174396,152.12,152.05,0.34]
[1718265941604,8.32,152.09,152.05,0.34]
[1718265942286,6.83174396,152.12,152.05,0.34]
[1718265942487,8.32,152.1,152.05,0.17]
[1718265942990,6.83174396,152.12,152.05,0.17]
[1718265943196,8.32,152.1,152.05,0.17]
[1718265944096,8.32,152.1,152.04,53.49]
[1718265944774,8.32,152.09,152.04,53.49]
[1718265944970,6.83174396,152.12,152.04,45.17]
[1718265944971,8.32,152.08,152.04,45.17]
[1718265945171,8.32,152.08,152.04,45.0]
[1718265945403,8.32,152.07,152.0,100.0]
[1718265945571,8.32,152.07,152.02,8.32]
[1718265945990,6.84020575,152.1,152.02,8.32]
[1718265945991,8.32,152.08,152.02,8.32]
[1718265946406,8.32,152.09,152.03,8.32]
[1718265946701,8.32,152.09,152.04,45.0]
[1718265949405,8.32,152.08,152.04,45.0]
[1718265949610,8.32,152.08,152.03,45.0]
[1718265950910,6.84020575,152.1,152.04,0.17]
[1718265951111,8.32,152.14,152.08,8.32]
[1718265951285,6.3855,152.18,152.11,8.32]
[1718265951487,251.41098843,152.19,152.12,8.32]
[1718265951707,8.32,152.17,152.11,0.17]
[1718265952014,251.41098843,152.19,152.12,8.32]
[1718265952422,8.32,152.17,152.13,45.0]
[1718265952594,8.32,152.16,152.11,45.0]
[1718265953220,8.32,152.17,152.11,53.32]
[1718265953689,258.2564578,152.19,152.11,53.32]
[1718265953890,8.32,152.17,152.11,53.32]
[1718265954100,8.32,152.16,152.11,45.0]
[1718265954329,8.32,152.15,152.1,16.3536]
[1718265954817,258.2564578,152.19,152.1,16.3536]
[1718265955111,8.32,152.15,152.1,16.3536]
[1718265955707,8.32,152.16,152.1,24.6736]
[1718265956208,8.32,152.15,152.1,16.3536]
[1718265956527,8.32,152.15,152.06,15.0625]
[1718265956528,8.32,152.11,152.06,15.0625]
[1718265956831,22.3755,152.15,152.06,15.0625]
[1718265956832,8.32,152.13,152.07,8.49]
[1718265957711,8.32,152.13,152.08,45.17]
[1718265957895,6.3176,152.15,152.1,8.32]
[1718265958095,8.32,152.15,152.1,8.32]
[1718265958317,20.0,152.18,152.1,8.32]
[1718265958500,8.32,152.16,152.1,8.32]
[1718265958702,8.32,152.15,152.1,8.32]
[1718265959215,20.0,152.18,152.1,8.32]
[1718265959216,8.32,152.16,152.11,45.0]
[1718265959409,8.32,152.17,152.12,8.32]
[1718265959731,20.0,152.18,152.12,8.32]
[1718265959889,28.32,152.18,152.13,45.0]
[1718265960490,8.32,152.18,152.13,45.0]
[1718265960786,258.2564578,152.19,152.14,0.17]
[1718265960989,251.41098843,152.19,152.16,8.49]
[1718265961186,251.41098843,152.19,152.16,8.32]
[1718265961592,251.41098843,152.19,152.17,45.0]
[1718265961815,251.41098843,152.19,152.16,8.32]
[1718265963915,251.41098843,152.19,152.12,16.5662]
[1718265964120,259.73098843,152.19,152.13,8.32]
[1718265964622,251.41098843,152.19,152.15,8.32]
[1718265964919,251.41098843,152.19,152.12,16.5662]
[1718265965422,251.41098843,152.19,152.14,0.17]
[1718265966619,251.41098843,152.19,152.14,0.84629098]
[1718265966819,251.41098843,152.19,152.15,0.51]
[1718265967023,251.41098843,152.19,152.14,0.17]
[1718265967522,0.8178281,152.2,152.14,0.17]
[1718265969121,0.8178281,152.2,152.16,0.17]
[1718265969297,0.8178281,152.2,152.16,45.68]
[1718265973316,0.8178281,152.2,152.16,145.68]
[1718265973534,0.8178281,152.2,152.16,45.68]
[1718265973722,0.8178281,152.2,152.16,45.0]
[1718265973919,0.8178281,152.2,152.15,16.6545]
[1718265974424,0.8178281,152.2,152.11,23.30693894]
[1718265975229,0.8178281,152.2,152.12,0.17]
[1718265975421,0.8178281,152.2,152.12,45.34]
[1718265975632,0.8178281,152.2,152.12,0.34]
[1718265975806,0.8178281,152.2,152.12,45.34]
[1718265976305,0.8178281,152.2,152.12,45.17]
[1718265976817,0.8178281,152.2,152.13,0.17]
[1718265977009,0.8178281,152.2,152.13,0.34]
[1718265977727,0.8178281,152.2,152.14,0.34]
[1718265977924,0.8178281,152.2,152.15,0.34]
[1718265979109,10.8178281,152.2,152.15,0.34]
[1718265979420,10.8178281,152.2,152.16,0.51]
[1718265980324,10.8178281,152.2,152.17,0.34]
[1718265980521,10.8178281,152.2,152.18,0.17]
[1718265980724,10.8178281,152.2,152.18,0.34]
[1718265983132,10.8178281,152.2,152.17,45.17]
[1718265984517,10.8178281,152.2,152.18,45.0]
[1718265984715,10.8178281,152.2,152.17,0.17]
[1718265984933,10.8178281,152.2,152.17,0.34]
[1718265986643,10.8178281,152.2,152.18,8.29]
[1718265986808,10.8178281,152.2,152.19,45.0]
[1718265987002,10.8178281,152.2,152.19,45.17]
[1718265987903,10.8178281,152.2,152.19,45.51]
[1718265988244,10.8178281,152.2,152.19,45.68]
[1718265990630,10.8178281,152.2,152.19,45.51]
[1718265991515,10.8178281,152.2,152.19,53.8]
[1718265991937,10.8178281,152.2,152.19,53.97]
[1718265992732,10.8178281,152.2,152.19,45.68]
[1718265992946,10.8178281,152.2,152.19,8.8]
[1718265993117,10.8178281,152.2,152.19,53.8]
[1718265993318,10.8178281,152.2,152.19,53.97]
[1718265995533,39.43,152.31,152.19,53.97]
[1718265995534,257.67728843,152.33,152.22,0.17]
[1718265995729,6.2663,152.33,152.24,8.29]
[1718265995932,8.29,152.3,152.24,8.29]
[1718265996117,8.29,152.29,152.25,45.0]
[1718265996433,6.84136695,152.32,152.25,45.0]
[1718265996635,8.29,152.3,152.25,45.0]
[1718265997224,8.29,152.29,152.25,45.0]
[1718265997936,6.84136695,152.32,152.26,0.34]
[1718265998128,8.29,152.29,152.26,0.17]
[1718265998311,8.29,152.29,152.25,0.34]
[1718265999134,6.84136695,152.32,152.25,0.34]
[1718265999440,6.84136695,152.32,152.27,8.46]
[1718265999619,8.29,152.33,152.28,45.17]
[1718265999826,17.4725281,152.35,152.28,45.0]
[1718265999827,8.29,152.32,152.28,45.0]